fUSD/lending_fUSD_20260406
["ID","MTS","AMOUNT","RATE_DAILY","PERIOD"]
[419876441,1775457042974,-150.0,0.00014099,2]
[419876442,1775457042987,-166.66,0.0001411,2]
[419876443,1775457042999,-500.0,0.00014133,2]
[419876444,1775457043013,-528.51181699,0.00014133,2]
[419876445,1775457043027,-1049.80043536,0.00014137,2]
[419876446,1775457043042,-174.75,0.00014149,2]
[419876447,1775457043056,-1049.80043536,0.00014192,2]
[419876448,1775457043069,-160.0,0.00014198,2]
[419876449,1775457043082,-209.212344,0.00014198,2]
[419876450,1775457043095,-258.424689,0.00014198,2]
[419876451,1775457043108,-938.34,0.00014204,2]
[419876452,1775457043121,-280.862137,0.00014214,7]
[419876453,1775457043134,-201.604624,0.00014214,2]
[419876454,1775457043147,-160.0,0.00014214,7]
[419876455,1775457043160,-482.23704,0.00014214,7]
[419876456,1775457043173,-804.47408,0.00014214,7]
[419876457,1775457043185,-160.0,0.00014214,7]
[419876458,1775457043198,-334.900035,0.00014214,7]
[419876459,1775457043212,-509.80007,0.00014214,7]
[419876460,1775457043224,-344.895704,0.00014214,2]
[419876461,1775457043238,-506.0,0.00014215,2]
[419876462,1775457043250,-1049.80043536,0.00014247,2]
[419876463,1775457043264,-166.66,0.00014247,2]
[419876464,1775457044509,-150.0,0.00014247,2]
[419876465,1775457044548,-1049.80043536,0.00014301,2]
[419876466,1775457044582,-501.00384349,0.0001435,2]
[419876467,1775457044625,-500.84960318,0.0001435,2]
[419876468,1775457044640,-500.0,0.0001435,2]
[419876469,1775457044649,-1049.80043536,0.00014356,2]
[419876470,1775457044659,-252.05,0.00014384,2]
[419876471,1775457044669,-166.66,0.00014384,2]
[419876472,1775457044678,-187.1413,0.000144,2]
[419876473,1775457044688,-150.0,0.000144,2]
[419876474,1775457044697,-150.0,0.000144,2]
[419876475,1775457044707,-150.0,0.000144,2]
[419876476,1775457044716,-1049.80043536,0.00014411,2]
[419876477,1775457044726,-1049.80043536,0.00014466,2]
[419876478,1775457044735,-938.34,0.00014478,2]
[419876479,1775457044745,-14474.61828866,0.00014482,2]
[419876480,1775457044755,-2933.6,0.00014488,2]
[419876481,1775457044764,-2933.6,0.00014488,2]
[419876482,1775457044774,-2933.6,0.00014488,2]
[419876483,1775457044784,-9999.99,0.00014504,2]
[419876484,1775457044794,-4227.25,0.00014504,2]
[419876485,1775457044804,-150.99,0.00014504,2]
[419876486,1775457044813,-1049.80043536,0.00014521,2]
[419876487,1775457044823,-1509.60812882,0.00014535,2]
[419876488,1775457044832,-1049.80043536,0.00014575,2]
[419876489,1775457044842,-578.20924308,0.00014615,2]
[419876490,1775457044860,-1377.42282659,0.00014615,2]
[419876491,1775457044871,-200.0,0.00014615,2]
[419876492,1775457044881,-500.0,0.00014615,2]
[419876493,1775457044892,-500.0,0.00014615,2]
[419876494,1775457044903,-695.39793187,0.00014615,2]
[419876495,1775457044913,-500.0,0.00014615,2]
[419876496,1775457044923,-500.0,0.00014615,2]
[419876497,1775457044933,-500.0,0.00014615,2]
[419876498,1775457044943,-500.0,0.00014615,2]
[419876499,1775457044953,-160.09011073,0.00014615,2]
[419876500,1775457044964,-743.50770149,0.00014615,2]
[419876501,1775457044974,-174.61919141,0.00014615,2]
[419876502,1775457044984,-1049.80043536,0.0001463,2]
[419876503,1775457044995,-500.0,0.0001467,2]
[419876504,1775457045005,-1000.0,0.00014681,2]
[419876505,1775457045015,-2919.18672784,0.00014685,2]
[419876506,1775457045025,-500.0,0.00014725,2]
[419876507,1775457045035,-938.35199746,0.00014752,2]
[419876508,1775457045047,-500.0,0.0001478,2]
[419876509,1775457045057,-250.0,0.00014795,2]
[419876510,1775457045067,-250.0,0.00014795,2]
[419876511,1775457045077,-500.0,0.00014835,2]
[419876512,1775457045087,-500.0,0.0001489,2]
[419876513,1775457045097,-285.28956,0.00014908,2]
[419876514,1775457045106,-657.595963,0.00014925,7]
[419876515,1775457045117,-456.681866,0.00014925,7]
[419876516,1775457045127,-500.0,0.00014945,2]
[419876517,1775457045137,-14474.61828866,0.00014955,2]
[419876518,1775457045148,-185.93,0.00014996,2]
[419876519,1775457045158,-300.0,0.00015,2]
[419876520,1775457045167,-500.0,0.00015,2]
[419876521,1775457045177,-736.0,0.00015032,2]
[419876522,1775457045187,-500.0,0.00015055,2]
[419876523,1775457045197,-500.0,0.00015058,2]
[419876524,1775457045206,-2000.0,0.00015058,2]
[419876525,1775457045216,-252.05,0.00015068,2]
[419876526,1775457045226,-500.0,0.0001511,2]
[419876527,1775457045236,-1907.0,0.00015129,5]
[419876528,1775457045246,-1733.0,0.00015129,5]
[419876529,1775457045256,-1428.38747117,0.00015163,2]
[419876530,1775457045265,-200.0,0.00015163,2]
[419876531,1775457045275,-771.01748645,0.00015163,2]
[419876532,1775457045286,-181.08010149,0.00015163,2]
[419876533,1775457045296,-500.0,0.00015165,2]
[419876534,1775457045306,-3000.0,0.00015178,2]
[419876535,1775457045317,-5899.01852917,0.00015187,3]
[419876536,1775457045327,-500.0,0.0001522,2]
[419876537,1775457045336,-1104.4544063,0.00015229,2]
[419876538,1775457045349,-350.0,0.00015256,2]
[419876539,1775457045359,-2919.18672784,0.00015292,2]
[419876540,1775457045370,-506.0,0.0001533,3]
[419876541,1775457045380,-350.0,0.00015345,2]
[419876542,1775457045390,-3292.0,0.00015366,2]
[419876543,1775457045400,-55430.0,0.0001537,2]
[419876544,1775457045410,-282.3,0.00015398,2]
[419876545,1775457045420,-306.0,0.000154,2]
[419876546,1775457045430,-1000.0,0.000154,2]
[419876547,1775457045440,-313.0,0.000154,2]
[419876548,1775457045450,-14474.61828866,0.00015427,2]
[419876549,1775457045460,-1300.0,0.00015452,2]
[419876550,1775457045470,-207.02,0.00015493,2]
[419876551,1775457045480,-4000.0,0.00015507,2]
[419876552,1775457045490,-500.0,0.00015507,2]
[419876553,1775457045500,-500.0,0.00015507,2]
[419876554,1775457045510,-500.0,0.00015507,2]
[419876555,1775457045519,-500.0,0.00015507,2]
[419876556,1775457045530,-500.0,0.00015507,2]
[419876557,1775457045539,-500.0,0.00015507,2]
[419876558,1775457045549,-500.0,0.00015507,2]
[419876559,1775457045559,-500.0,0.00015507,2]
[419876560,1775457045569,-500.0,0.00015507,2]
[419876561,1775457045579,-500.0,0.00015507,2]
[419876562,1775457045589,-500.0,0.00015507,2]
[419876563,1775457045599,-500.0,0.00015507,2]
[419876564,1775457045609,-500.0,0.00015507,2]
[419876565,1775457045620,-500.0,0.00015507,2]
[419876566,1775457045630,-500.0,0.00015507,2]
[419876567,1775457045640,-500.0,0.00015507,2]
[419876568,1775457045650,-500.0,0.00015507,2]
[419876569,1775457045660,-500.0,0.00015507,2]
[419876570,1775457045670,-500.0,0.00015507,2]
[419876571,1775457045680,-500.0,0.00015507,2]
[419876573,1775457045691,-500.0,0.00015507,2]
[419876575,1775457045700,-500.0,0.00015507,2]
[419876576,1775457045710,-500.0,0.00015507,2]
[419876577,1775457045720,-500.0,0.00015507,2]
[419876578,1775457045731,-500.0,0.00015507,2]
[419876579,1775457045741,-500.0,0.00015507,2]
[419876580,1775457045751,-500.0,0.00015507,2]
[419876581,1775457045761,-500.0,0.00015507,2]
[419876582,1775457045771,-500.0,0.00015507,2]
[419876583,1775457045782,-500.0,0.00015507,2]
[419876584,1775457045795,-152.0,0.00015629,3]
[419876585,1775457045805,-152.0,0.00015629,5]
[419876586,1775457045816,-490.0,0.00015642,2]
[419876587,1775457045827,-1015.54723416,0.0001568,2]
[419876588,1775457045837,-475.21964445,0.00015683,2]
[419876589,1775457045847,-209.0302,0.000157,2]
[419876590,1775457045857,-1481.23780761,0.00015711,2]
[419876591,1775457045868,-200.0,0.00015711,2]
[419876592,1775457045879,-450.18883502,0.00015711,2]
[419876593,1775457045889,-187.78006525,0.00015711,2]
[419876594,1775457045899,-142106.7906972,0.00015745,2]
[419876595,1775457045909,-252.05,0.00015753,2]
[419876596,1775457045919,-490.0,0.00015772,2]
[419876597,1775457045930,-500.0,0.00015773,2]
[419876598,1775457045940,-500.0,0.00015773,2]
[419876599,1775457045950,-501.68095018,0.00015773,2]
[419876600,1775457045960,-501.91295738,0.00015773,2]
[419876601,1775457045970,-500.0,0.00015773,2]
[419876602,1775457045980,-501.20987771,0.00015773,2]
[419876603,1775457045990,-500.72427553,0.00015773,2]
[419876604,1775457046001,-500.0,0.00015773,2]
[419876605,1775457046011,-500.0,0.00015818,2]
[419876606,1775457046022,-500.0,0.00015818,2]
[419876607,1775457046032,-500.0,0.00015818,2]
[419876608,1775457046043,-500.0,0.00015818,2]
[419876609,1775457046053,-500.0,0.00015818,2]
[419876610,1775457046064,-500.0,0.00015818,2]
[419876611,1775457046074,-500.0,0.00015818,2]
[419876612,1775457046084,-500.0,0.00015818,2]
[419876613,1775457046094,-500.0,0.00015818,2]
[419876614,1775457046104,-500.0,0.00015818,2]
[419876615,1775457046115,-500.0,0.00015818,2]
[419876616,1775457046124,-500.0,0.00015818,2]
[419876617,1775457046135,-500.0,0.00015818,2]
[419876618,1775457046144,-500.0,0.00015818,2]
[419876619,1775457046154,-500.0,0.00015818,2]
[419876620,1775457046164,-500.0,0.00015818,2]
[419876621,1775457046174,-500.0,0.00015839,2]
[419876622,1775457046184,-500.0,0.00015839,2]
[419876623,1775457046194,-500.0,0.00015839,2]
[419876624,1775457046204,-2000.0,0.0001584,2]
[419876625,1775457046214,-2000.0,0.0001584,2]
[419876626,1775457046224,-185.93,0.00015842,2]
[419876627,1775457046234,-2000.0,0.0001585,2]
[419876628,1775457046244,-151.0,0.00015854,2]
[419876629,1775457046255,-67848.7250313,0.00015857,2]
[419876630,1775457046265,-6082.156209,0.00015857,2]
[419876631,1775457046275,-6394.7435139,0.00015857,2]
[419876632,1775457046286,-1498.68,0.00015862,2]
[419876633,1775457046296,-500.0,0.00015872,2]
[419876634,1775457046306,-200.0,0.00015872,2]
[419876635,1775457046317,-500.94794728,0.00015873,2]
[419876636,1775457046327,-501.00927778,0.00015873,2]
[419876637,1775457046337,-4000.0,0.00015895,2]
[419876638,1775457046347,-151.0,0.00015897,2]
[419876639,1775457046357,-490.0,0.00015898,2]
[419876640,1775457046367,-5533.8703271,0.000159,2]
[419876641,1775457046377,-234.96349068,0.000159,2]
[419876642,1775457046388,-5874.4361813,0.000159,2]
[419876643,1775457046398,-443.97606482,0.000159,2]
[419876644,1775457046408,-14474.61828866,0.000159,2]
[419876645,1775457046418,-2919.18672784,0.000159,2]
[419876646,1775457046428,-162.57129974,0.00015973,2]
[419876647,1775457046439,-391.36179305,0.00015984,2]
[419876648,1775457046448,-152.15416554,0.00015984,2]
[419876649,1775457046458,-1344.02555,0.00015984,2]
[419876650,1775457046469,-957.94011104,0.00015984,2]
[419876651,1775457046479,-1371.90941274,0.00015984,2]
[419876652,1775457046489,-192.66228373,0.00015984,2]
[419876653,1775457046500,-500.0,0.00015988,2]
[419876654,1775457046510,-500.0,0.00015988,2]
[419876655,1775457046520,-500.0,0.00015988,2]
[419876656,1775457046530,-500.0,0.00015988,2]
[419876657,1775457046541,-500.0,0.00015988,2]
[419876658,1775457046550,-500.0,0.00015988,2]
[419876659,1775457046561,-500.0,0.00015988,2]
[419876660,1775457046570,-500.0,0.00015988,2]
[419876661,1775457046580,-195.84028331,0.00015988,2]
[419876662,1775457046591,-500.0,0.00015988,2]
[419876663,1775457046601,-500.0,0.00015988,2]
[419876664,1775457046611,-500.0,0.00015988,2]
[419876665,1775457046621,-500.0,0.00015988,2]
[419876666,1775457046631,-500.0,0.00015988,2]
[419876667,1775457046641,-500.0,0.00015988,2]
[419876668,1775457046651,-500.0,0.00015988,2]
[419876669,1775457046660,-500.0,0.00015988,2]
[419876670,1775457046670,-200.0,0.00015989,2]
[419876671,1775457046681,-200.0,0.00015989,2]
[419876672,1775457046691,-500.0,0.00015989,2]
[419876673,1775457046701,-150.0,0.00015989,2]
[419876674,1775457046711,-200.09873022,0.00015989,2]
[419876675,1775457046721,-500.0,0.00015989,2]
[419876676,1775457046731,-500.0,0.00015989,2]
[419876677,1775457046741,-500.0,0.00015989,2]
[419876678,1775457046751,-550.4581733,0.00015989,2]
[419876679,1775457046761,-500.0,0.00015989,2]
[419876680,1775457046771,-500.0,0.00015989,2]
[419876681,1775457046780,-500.0,0.00015989,2]
[419876682,1775457046790,-500.0,0.00015989,2]
[419876683,1775457046800,-500.0,0.00015989,2]
[419876684,1775457046811,-500.0,0.00015989,2]
[419876685,1775457046821,-500.0,0.00015989,2]
[419876686,1775457046831,-500.0,0.00015989,2]
[419876687,1775457046840,-500.0,0.00015989,2]
[419876688,1775457046850,-500.0,0.00015989,2]
[419876689,1775457046860,-500.0,0.00015989,2]
[419876690,1775457046871,-500.0,0.00015989,2]
[419876691,1775457046881,-500.0,0.00015989,2]
[419876692,1775457046891,-500.0,0.00015989,2]
[419876693,1775457046901,-332.55093908,0.00015989,2]
[419876694,1775457046911,-323.26911688,0.0001599,2]
[419876695,1775457046921,-323.26911688,0.0001599,2]
[419876696,1775457046931,-500.0,0.00015997,2]
[419876697,1775457046941,-150.0,0.00015997,2]
[419876698,1775457046951,-153.10219045,0.00015997,2]
[419876699,1775457046961,-500.0,0.00015997,2]
[419876700,1775457046971,-150.0,0.00015997,2]
[419876701,1775457047145,-150.0,0.00015997,2]
[419876702,1775457047155,-150.0,0.00015997,2]
[419876703,1775457047165,-151.0,0.00015997,2]
[419876704,1775457047175,-151.0,0.00015997,2]
[419876705,1775457047184,-151.0,0.00015997,2]
[419876706,1775457047194,-500.0,0.00015999,2]
[419876707,1775457047203,-435.78,0.00015999,2]
[419876708,1775457047213,-500.0,0.00015999,2]
[419876709,1775457047222,-500.0,0.00015999,2]
[419876710,1775457047231,-500.0,0.00015999,2]
[419876711,1775457047241,-500.0,0.00015999,2]
[419876712,1775457047250,-500.0,0.00015999,2]
[419876713,1775457047260,-500.0,0.00015999,2]
[419876714,1775457047269,-500.0,0.00015999,2]
[419876715,1775457047278,-479.27,0.00015999,2]
[419876716,1775457047289,-500.0,0.00015999,2]
[419876717,1775457047298,-500.0,0.00015999,2]
[419876718,1775457047308,-500.0,0.00015999,2]
[419876719,1775457047317,-500.0,0.00015999,2]
[419876720,1775457047326,-500.0,0.00015999,2]
[419876721,1775457047335,-607.43953795,0.00015999,2]
[419876722,1775457047345,-500.0,0.00015999,2]
[419876723,1775457047355,-500.0,0.00015999,2]
[419876724,1775457047364,-500.0,0.00015999,2]
[419876725,1775457047374,-500.0,0.00015999,2]
[419876726,1775457047383,-500.03384418,0.00015999,2]
[419876727,1775457047392,-500.0,0.00015999,2]
[419876728,1775457047402,-1511028.7526156,0.00016,2]
[419876737,1775457048830,-1648213.7766834,0.00016,2]
[419876738,1775457048895,-6750.50676922,0.00016,2]
[419876739,1775457048911,-4864.17954511,0.00016,2]
[419876740,1775457048922,-1019.64210675,0.00016,2]
[419876744,1775457049937,-500.0,0.00011637,2]
[419876745,1775457049947,-400.60037263,0.00011637,2]
[419876746,1775457049958,-99.39962737,0.00011637,2]
[419876747,1775457049968,-500.0,0.00011637,2]
[419876748,1775457049978,-127.25404755,0.00011637,2]
[419876749,1775457049990,-372.74595245,0.00011637,2]
[419876750,1775457049999,-500.0,0.00011637,2]
[419876751,1775457050010,-500.0,0.00011637,2]
[419876752,1775457050019,-500.0,0.00011637,2]
[419876753,1775457050029,-366.94883373,0.00011637,2]
[419876754,1775457050039,-500.0,0.00011637,2]
[419876755,1775457050049,-3523.0,0.00013939,2]
[419876756,1775457050058,-298.04327148,0.00016,2]
[419876757,1775457050931,-500.0,0.00011637,2]
[419876758,1775457050941,-500.0,0.00011637,2]
[419876759,1775457050950,-500.0,0.00011637,2]
[419876760,1775457050960,-289.38301842,0.00011637,2]
[419876761,1775457050969,-500.0,0.00011637,2]
[419876762,1775457050979,-500.0,0.00011637,2]
[419876763,1775457050989,-500.0,0.00011637,2]
[419876764,1775457050998,-500.0,0.00011637,2]
[419876765,1775457051007,-500.0,0.00011637,2]
[419876766,1775457051017,-500.0,0.00011637,2]
[419876767,1775457051026,-500.0,0.00011637,2]
[419876768,1775457051036,-500.0,0.00011637,2]
[419876769,1775457051046,-500.0,0.00011637,2]
[419876770,1775457051056,-368.13255766,0.00011637,2]
[419876771,1775457051066,-186.62931232,0.00011637,2]
[419876772,1775457051076,-500.0,0.00011637,2]
[419876773,1775457051086,-500.0,0.00011637,2]
[419876774,1775457051096,-500.0,0.00011637,2]
[419876775,1775457051106,-500.0,0.00011637,2]
[419876776,1775457051115,-500.0,0.00011637,2]
[419876777,1775457051124,-500.0,0.00011637,2]
[419876778,1775457051135,-500.0,0.00011637,2]
[419876779,1775457051144,-500.0,0.00011637,2]
[419876780,1775457051154,-500.0,0.00011637,2]
[419876781,1775457051164,-500.0,0.00011637,2]
[419876782,1775457051173,-500.0,0.00011637,2]
[419876783,1775457051183,-500.0,0.00011637,2]
[419876784,1775457051193,-500.0,0.00011637,2]
[419876785,1775457051202,-500.0,0.00011637,2]
[419876786,1775457051212,-500.0,0.00011637,2]
[419876787,1775457051221,-363.76329004,0.00011637,2]
[419876788,1775457051231,-500.0,0.00011637,2]
[419876789,1775457051241,-500.0,0.00011637,2]
[419876790,1775457051250,-500.0,0.00011637,2]
[419876791,1775457051259,-500.0,0.00011637,2]
[419876792,1775457051269,-500.0,0.00011637,2]
[419876793,1775457051278,-500.0,0.00011637,2]
[419876794,1775457051289,-500.0,0.00011637,2]
[419876795,1775457051298,-500.0,0.00011637,2]
[419876796,1775457051308,-500.0,0.00011637,2]
[419876797,1775457051318,-500.0,0.00011637,2]
[419876798,1775457051328,-500.0,0.00011637,2]
[419876799,1775457051338,-48592.09182158,0.00016,2]
[419876800,1775457051350,-72362.79333269,0.00016,2]
[419876801,1775457051362,-258045.92580908,0.00016,2]
[419876804,1775457512639,468.63,7.185e-05,2]
[419876805,1775457512685,468.63,7.563e-05,2]
[419876806,1775457512735,468.63,7.941e-05,2]
[419876807,1775457512872,468.63,8.32e-05,2]
[419876816,1775458232246,-468.63,8.698e-05,2]
[419876817,1775458232257,-483.86886372,8.792e-05,2]
[419876818,1775458232352,-2063.04835497,8.792e-05,2]
[419876819,1775458232363,-468.63,9.076e-05,2]
[419876820,1775458232375,-1150.71219364,9.454e-05,2]
[419876821,1775458232385,-468.63,9.454e-05,2]
[419876822,1775458232395,-1200.0,9.567e-05,2]
[419876823,1775458232405,-250.08701296,9.568e-05,2]
[419876824,1775458232445,-1684.17663249,9.568e-05,2]
[419876829,1775458238172,-3065.73635455,9.568e-05,2]
[419876830,1775458238183,-250.0,9.568e-05,2]
[419876831,1775458238193,-250.0,9.568e-05,2]
[419876832,1775458238202,-468.63,9.832e-05,2]
[419876833,1775458238212,-499.89678685,0.0001,2]
[419876834,1775458238222,-527.39743627,0.0001,2]
[419876835,1775458238231,-338.00393666,0.0001,2]
[419876836,1775458238243,-292.24348567,0.0001021,2]
[419876837,1775458238255,-176.38651433,0.0001021,2]
[419876838,1775458238264,-1443.61348567,0.00010523,2]
[419876839,1775458238294,-236.38651433,0.00010523,2]
[419876840,1775458238303,-468.63,0.00010589,2]
[419876841,1775458238313,-468.63,0.00010967,2]
[419876842,1775458238322,-150.0,0.00011,2]
[419876843,1775458238332,-468.63,0.00011345,2]
[419876844,1775458238341,-250.33567312,0.00011493,2]
[419876845,1775458238351,-412.0,0.00011575,2]
[419876846,1775458238363,-1000.0,0.00011645,2]
[419876847,1775458238372,-468.63,0.00011723,2]
[419876848,1775458238382,-468.63,0.00012101,2]
[419876849,1775458238392,-167.2253,0.000123,2]
[419876850,1775458238401,-2933.6,0.000123,2]
[419876851,1775458238411,-2933.6,0.000123,2]
[419876852,1775458238421,-2933.6,0.000123,2]
[419876853,1775458238430,-468.63,0.00012479,2]
[419876854,1775458238440,-162.8,0.00012724,2]
[419876855,1775458238450,-468.63,0.00012858,2]
[419876856,1775458238460,-250.0,0.00013,2]
[419876857,1775458238469,-468.63,0.00013236,2]
[419876858,1775458238479,-150.0,0.00013236,2]
[419876859,1775458238488,-162.8,0.00013424,2]
[419876860,1775458238498,-186.4288,0.000136,2]
[419876861,1775458238507,-468.63,0.00013614,2]
[419876862,1775458238517,-500.0,0.00013698,2]
[419876863,1775458238526,-500.0,0.00013698,2]
[419876864,1775458238536,-500.0,0.00013698,2]
[419876865,1775458238546,-500.0,0.00013698,2]
[419876866,1775458238555,-500.0,0.00013698,2]
[419876867,1775458238565,-500.0,0.00013698,2]
[419876868,1775458238574,-500.0,0.00013698,2]
[419876869,1775458238584,-500.0,0.00013698,2]
[419876870,1775458238593,-500.0,0.00013698,2]
[419876871,1775458238602,-500.0,0.00013698,2]
[419876872,1775458238612,-500.0,0.00013698,2]
[419876873,1775458238621,-500.0,0.00013698,2]
[419876874,1775458238631,-500.0,0.00013698,2]
[419876875,1775458238640,-500.0,0.00013698,2]
[419876876,1775458238651,-500.0,0.00013698,2]
[419876878,1775458238660,-500.0,0.00013698,2]
[419876879,1775458238670,-500.0,0.00013698,2]
[419876880,1775458238679,-500.0,0.00013698,2]
[419876881,1775458238690,-500.0,0.00013698,2]
[419876882,1775458238699,-500.0,0.00013698,2]
[419876884,1775458238709,-500.0,0.00013698,2]
[419876887,1775458238719,-500.0,0.00013698,2]
[419876889,1775458238728,-500.0,0.00013698,2]
[419876891,1775458238738,-500.0,0.00013698,2]
[419876893,1775458238747,-500.0,0.00013698,2]
[419876895,1775458238757,-500.0,0.00013698,2]
[419876897,1775458238766,-500.0,0.00013698,2]
[419876899,1775458238776,-500.0,0.00013698,2]
[419876900,1775458238786,-500.0,0.00013698,2]
[419876901,1775458238795,-500.0,0.00013698,2]
[419876902,1775458238805,-500.0,0.00013698,2]
[419876903,1775458238814,-500.0,0.00013698,2]
[419876904,1775458238824,-500.0,0.00013698,2]
[419876905,1775458238833,-607.43953795,0.00013698,2]
[419876906,1775458238843,-500.0,0.00013698,2]
[419876907,1775458238854,-500.0,0.00013698,2]
[419876908,1775458238864,-500.0,0.00013698,2]
[419876909,1775458238873,-500.0,0.00013698,2]
[419876910,1775458238883,-500.0,0.00013698,2]
[419876911,1775458238893,-500.0,0.00013698,2]
[419876912,1775458238903,-500.0,0.00013698,2]
[419876914,1775458238912,-500.0,0.00013698,2]
[419876916,1775458238922,-500.0,0.00013698,2]
[419876918,1775458238931,-500.0,0.00013698,2]
[419876920,1775458238941,-348.586408,0.00013698,2]
[419876922,1775458238951,-500.0,0.00013698,2]
[419876924,1775458238960,-500.0,0.00013698,2]
[419876925,1775458238970,-500.0,0.00013698,2]
[419876926,1775458238979,-500.0,0.00013698,2]
[419876927,1775458238989,-500.0,0.00013698,2]
[419876928,1775458238999,-500.0,0.00013698,2]
[419876929,1775458239008,-500.0,0.00013698,2]
[419876930,1775458239018,-500.0,0.00013698,2]
[419876931,1775458239028,-500.0,0.00013698,2]
[419876932,1775458239038,-160.0,0.00013874,2]
[419876933,1775458239048,-2276.2935,0.00013982,2]
[419876934,1775458239059,-468.63,0.00013992,2]
[419876935,1775458239068,-7295.85063283,0.00014035,2]
[419876936,1775458239078,-1046.0,0.00014045,2]
[419876937,1775458239089,-3523.0,0.00014045,2]
[419876938,1775458239098,-1347.0,0.00014045,2]
[419876939,1775458239108,-622.0,0.00014045,2]
[419876940,1775458239117,-1263.0,0.00014045,2]
[419876941,1775458239127,-925.0,0.00014045,2]
[419876942,1775458239137,-1217.0,0.00014045,2]
[419876943,1775458239146,-3771.0,0.00014045,2]
[419876944,1775458239156,-6021.0,0.00014045,2]
[419876945,1775458239166,-1300.0,0.00014082,2]
[419876946,1775458239176,-2900.0,0.00014082,2]
[419876947,1775458239186,-162.8,0.00014124,2]
[419876948,1775458239196,-200.0,0.00014292,2]
[419876949,1775458239206,-7895.91923617,0.00014347,2]
[419876950,1775458239215,-8888.42066245,0.00014347,2]
[419876951,1775458239225,-255.0,0.00014348,2]
[419876952,1775458239235,-468.63,0.0001437,2]
[419876953,1775458239244,-215.51274459,0.00014394,2]
[419876954,1775458239254,-2000.0,0.00014399,2]
[419876955,1775458239263,-1573.0,0.000144,2]
[419876956,1775458239273,-2811.0,0.000144,2]
[419876957,1775458239283,-151.0,0.00014401,2]
[419876958,1775458239292,-151.0,0.00014401,2]
[419876959,1775458239302,-500.0,0.00014402,2]
[419876960,1775458239312,-500.0,0.00014402,2]
[419876961,1775458239322,-500.0,0.00014402,2]
[419876962,1775458239332,-500.0,0.00014402,2]
[419876963,1775458239341,-500.0,0.00014402,2]
[419876964,1775458239351,-500.0,0.00014402,2]
[419876965,1775458239361,-207923.20810607,0.00014403,2]
[419876966,1775458239370,-187.40325693,0.00014403,2]
[419876967,1775458239380,-262.99431486,0.00014403,2]
[419876968,1775458239389,-374.23695085,0.00014403,2]
[419876969,1775458239399,-500.0,0.00014403,2]
[419876970,1775458239409,-500.0,0.00014403,2]
[419876971,1775458239418,-536.376329,0.00014403,2]
[419876972,1775458239428,-500.0,0.00014404,2]
[419876973,1775458239437,-500.0,0.00014404,2]
[419876974,1775458239448,-500.0,0.00014404,2]
[419876975,1775458239458,-500.0,0.00014404,2]
[419876976,1775458239467,-500.0,0.00014404,2]
[419876977,1775458239477,-500.0,0.00014404,2]
[419876978,1775458239487,-500.0,0.00014404,2]
[419876979,1775458239496,-500.0,0.00014404,2]
[419876980,1775458239506,-195.84028331,0.00014404,2]
[419876981,1775458239516,-1500000.0,0.00014404,2]
[419876982,1775458239526,-185.52,0.00014447,2]
[419876983,1775458239536,-500.0,0.00014473,2]